{"text_format":"1","workbook":"xlsx","n_sheets":10,"sheets":["Home","Ringnummers","Lokaal","6-Verbond","NH","Brabantse-Unie","Nationaal","Nationaal2","Nationaal3","Afrekening"],"not_rendered":{"charts":0,"images":5,"macros":1,"external_links":0,"defined_names":6,"comments":0,"pivot_tables":0},"unopened":[],"bounds":{"document_bytes":16777216,"sheet_cells":100000,"rows_first":2000,"rows_last":500,"rows_between":2000,"halvings":0,"cell_chars":16384,"cell_head_chars":4096},"cells_cut":0,"cells_raw":0,"read":"whole","date_system":"1900"}

{"sheet":"Home","index":0,"n_rows":18,"n_cols":29,"rows_kept":18,"cut":false,"hidden":false,"merged":[[14,7,14,8],[15,7,15,8],[13,2,13,4],[7,26,7,28],[12,7,12,8],[10,7,10,8],[10,9,10,11],[11,7,11,8],[11,9,11,11],[10,2,10,5],[11,2,11,5],[12,2,12,5],[4,26,4,29],[5,26,5,29],[6,26,6,29],[1,2,4,17],[13,7,13,8]]}
[]
[null,null,"POELBRIEVEN INVULLEN EN BEHEREN VERSIE 10.0"]
[]
[]
[null,null,null,null,null,null,null,null,null,null,null,null,null,null,null,null,null,null,null,null,null,null,null,null,null,null,"GEERT BUELENS"]
[null,null,null,null,null,null,null,null,null,null,null,null,null,null,null,null,null,null,null,null,null,null,null,null,null,null,"HOUWAARTSTRAAT 8"]
[null,"Dit is een test versie en is nog in opbouw - VERSIE 10.0!!",null,null,null,null,null,null,null,null,null,null,null,null,null,null,null,null,null,null,null,null,null,null,null,null,"3270 SCHERPENHEUVEL"]
[null,"U KAN DE GEGEVENS BEHEREN IN HET MENU POELBRIEF GEGEVENS",null,null,null,null,null,null,null,null,null,null,null,null,null,null,null,null,null,null,null,null,null,null,null,null,"208904-63"]
[null,"Vul uw gegevens in op de groene vakken en klik op opslaan, hierna kan je invullen door op mijn gegevens te klikken",null,null,null,null,null,null,null,null,null,null,null,null,null,null,null,null,null,null,null,null,null,null,null,null,505816.4,"/",456509]
[]
[null,"NAAM",null,null,null,null,null,"VLUCHT"]
[null,"ADRES",null,null,null,null,null,"DATUM"]
[null,"GEMEENTE",null,null,null,null,null,"COORDINATEN",null,null,"/"]
[null,"KBDB LICENTIE",null,null,null,null,null,"Aantal oude"]
[null,null,null,null,null,null,null,"Aantal Jaarse"]
[null,null,null,null,null,null,null,"Aantal jonge",null,null,null,null,null,"VUL DE GEGEVENS IN IN DE GROENE VAKKEN - KLIK OP OPLSAAN"]
[null,null,null,null,null,null,null,null,null,null,null,null,null,"VERGEET NIET OM UW MACRO'S IN TE SCHAKELEN/ACTIVEREN NA HET OPENEN"]
[null,null,null,null,null,null,null,null,null,null,null,null,null,"VAN DIT BESTAND"]

{"sheet":"Ringnummers","index":1,"n_rows":52,"n_cols":14,"rows_kept":52,"cut":false,"hidden":false,"merged":[[51,1,53,13],[3,8,3,13],[0,2,0,6],[1,2,1,6],[0,10,0,13],[0,0,0,1],[3,2,3,6]]}
["NAAM",null,{"$f":"Home!C11","v":0},null,null,null,null,null,"Lic.KBDB",null,{"$f":"Home!C14","v":0}]
[null,null,{"$f":"Home!C12","v":0}]
[]
[null,null,{"$f":"Home!C13","v":0},null,null,null,null,null,"WWW.VERENIGDEVRIENDEN.NET"]
[]
[null,"      OUDE DUIVEN",null,null,null,null,"      JAARDUIVEN",null,null,null,null,"      JONGE DUIVEN"]
[null,"Alum Ring","Jaar","Rubber",null,null,"Alum Ring","Jaar","Rubber",null,null,"Alum Ring","Jaar","Rubber"]
[1,null,null,null,null,1,null,null,null,null,1]
[2,null,null,null,null,2,null,null,null,null,2]
[3,null,null,null,null,3,null,null,null,null,3]
[4,null,null,null,null,4,null,null,null,null,4]
[5,null,null,null,null,5,null,null,null,null,5]
[6,null,null,null,null,6,null,null,null,null,6]
[7,null,null,null,null,7,null,null,null,null,7]
[8,null,null,null,null,8,null,null,null,null,8]
[9,null,null,null,null,9,null,null,null,null,9]
[10,null,null,null,null,10,null,null,null,null,10]
[11,null,null,null,null,11,null,null,null,null,11]
[12,null,null,null,null,12,null,null,null,null,12]
[13,null,null,null,null,13,null,null,null,null,13]
[14,null,null,null,null,14,null,null,null,null,14]
[15,null,null,null,null,15,null,null,null,null,15]
[16,null,null,null,null,16,null,null,null,null,16]
[17,null,null,null,null,17,null,null,null,null,17]
[18,null,null,null,null,18,null,null,null,null,18]
[19,null,null,null,null,19,null,null,null,null,19]
[20,null,null,null,null,20,null,null,null,null,20]
[21,null,null,null,null,21,null,null,null,null,21]
[22,null,null,null,null,22,null,null,null,null,22]
[23,null,null,null,null,23,null,null,null,null,23]
[24,null,null,null,null,24,null,null,null,null,24]
[25,null,null,null,null,25,null,null,null,null,25]
[26,null,null,null,null,26,null,null,null,null,26]
[27,null,null,null,null,27,null,null,null,null,27]
[28,null,null,null,null,28,null,null,null,null,28]
[29,null,null,null,null,29,null,null,null,null,29]
[30,null,null,null,null,30,null,null,null,null,30]
[31,null,null,null,null,31,null,null,null,null,31]
[32,null,null,null,null,32,null,null,null,null,32]
[33,null,null,null,null,33,null,null,null,null,33]
[34,null,null,null,null,34,null,null,null,null,34]
[35,null,null,null,null,35,null,null,null,null,35]
[36,null,null,null,null,36,null,null,null,null,36]
[37,null,null,null,null,37,null,null,null,null,37]
[38,null,null,null,null,38,null,null,null,null,38]
[39,null,null,null,null,39,null,null,null,null,39]
[40,null,null,null,null,40,null,null,null,null,40]
[41,null,null,null,null,41,null,null,null,null,41]
[42,null,null,null,null,42,null,null,null,null,42]
[43,null,null,null,null,43,null,null,null,null,43]
[]
[null,"WWW.VERENIGDEVRIENDEN.NET"]

{"sheet":"Lokaal","index":2,"n_rows":57,"n_cols":26,"rows_kept":57,"cut":false,"hidden":false,"merged":[[19,0,20,7],[17,12,17,13],[21,12,21,13],[34,12,34,13],[38,12,38,13],[42,13,43,13],[3,0,4,0],[3,1,4,4],[3,5,4,7],[3,9,3,10],[4,9,4,10],[7,10,7,12],[7,13,8,13],[24,10,24,12],[24,13,25,13],[0,0,0,14],[1,0,2,0],[1,1,2,7],[1,8,2,8],[1,9,2,10],[1,11,2,11],[1,12,2,14],[15,4,15,6],[16,4,17,6],[3,11,4,11],[3,12,4,14],[5,0,6,4],[21,9,21,11],[38,9,38,11],[56,9,56,11],[54,0,55,2],[54,3,55,5],[51,4,52,6],[42,10,42,12],[52,12,52,13],[56,12,56,13],[32,4,32,6],[33,4,34,6],[50,4,50,6],[22,0,23,4],[40,0,41,4]]}
["Verenigde vrienden                                    Scherpenheuvel",null,null,null,null,null,null,null,null,null,null,null,null,null,null,null,null,null,null,null,null,null,null,"Momignies",null,0.7]
["Naam : ",{"$f":"Home!C11","v":0},null,null,null,null,null,null,"Lidnr :",{"$f":"Home!C14","v":0},null,"Vlucht: ",{"$f":"Home!J11","v":0},null,null,null,null,null,null,null,null,null,null,"Soissons",null,0.8]
[null,null,null,null,null,null,null,null,null,null,null,null,null,null,null,null,null,null,null,null,null,null,null,"Nanteuil",null,0.85]
["Straat : ",{"$f":"Home!C12","v":0},null,null,null,{"$f":"Home!C13","v":0},null,null,"CRD1:",{"$f":"Home!J13","v":0},null,"Datum:",{"$f":"Home!J12","v":"00:00:00"},null,null,null,null,null,null,null,null,null,null,"Laon",null,0.75]
[null,null,null,null,null,null,null,null,"CRD2:",{"$f":"Home!L13","v":0},null,null,null,null,null,null,null,null,null,null,null,null,null,"Sermaises",null,1.2]
["Oude duiven                                   ",null,null,null,null,null,null,null,null,null,null,null,null,null,null,null,null,null,null,null,null,null,null,"Orleans"]
[null,null,null,null,null,null,null,null,null,null,null,null,null,null,null,null,null,null,null,null,null,null,null,0,0,0]
[null,"Miezen","Poulen","Special","OAS","AS2","1+2","PVA","POT","Jackpot","Kostprijs",null,null,"Totaal"]
[null,3,6,20,10,15,20,10,"50-30-20",50,"Aantal","x","Kost"]
[0.25,null,null,null,null,null,null,null,null,null,{"$f":"SUM(B10:J10)","v":0},"x",{"$f":"A10","v":0.25},{"$f":"$K10*$M10","v":0}]
[0.35,null,null,null,null,null,null,null,null,null,{"$f":"SUM(B11:J11)","v":0},"x",{"$f":"A11+M10","v":0.6},{"$f":"$K11*$M11","v":0}]
[0.5,null,null,null,null,null,null,null,null,null,{"$f":"SUM(B12:J12)","v":0},"x",1.1000000000000001,0]
[1,null,null,null,null,null,null,null,null,null,{"$f":"SUM(B13:J13)","v":0},"x",2.1,0]
[2.5,null,null,null,null,null,null,null,null,null,{"$f":"SUM(B14:J14)","v":0},"x",4.5999999999999996,0]
[5,null,null,null,null,null,null,null,null,null,{"$f":"SUM(B15:C15)","v":0},"x",9.6,0]
[10,null,null,null,"AANTAL DUIVEN",null,null,null,null,null,{"$f":"SUM(B16)","v":0},"x",19.600000000000001,0]
[25,null,null,null,{"$f":"Home!J14","v":0},null,null,null,null,null,{"$f":"SUM(B17)","v":0},"x",44.6,0]
[null,null,null,null,null,null,null,null,null,"Inleg",null,null,{"$f":"SUM(N10:N17)","v":0}]
[null,null,null,null,null,null,null,null,null,"Port",{"$f":"E17","v":0},"x",{"$f":"VLOOKUP(M2,port,3,FALSE)","v":0},{"$f":"K19*M19","v":0}]
["WWW.VERENIGDEVRIENDEN.NET",null,null,null,null,null,null,null,null,"Uitslag",null,"x",1,{"$f":"K20*M20","v":0}]
[null,null,null,null,null,null,null,null,null,"Toestel",null,"x",0.5,0]
[null,null,null,null,null,null,null,null,null,"TOTAAL OUDE:",null,null,{"$f":"SUM(M18,N19,N20,N21)","v":0}]
["Jaarduiven                                                                    "]
[]
[null,"Miezen","Poulen","Special","OAS","AS2","1+2","PVA","POT","Jackpot","Kostprijs",null,null,"Totaal"]
[null,3,6,20,10,15,20,10,"50-30-20",50,"Aantal","x","Kost"]
[0.25,null,null,null,null,null,null,null,null,null,{"$f":"SUM(B27:J27)","v":0},"x",{"$f":"A27","v":0.25},{"$f":"$K27*$M27","v":0}]
[0.35,null,null,null,null,null,null,null,null,null,{"$f":"SUM(B28:J28)","v":0},"x",{"$f":"A28+M27","v":0.6},{"$f":"$K28*$M28","v":0}]
[0.5,null,null,null,null,null,null,null,null,null,{"$f":"SUM(B29:J29)","v":0},"x",1.1000000000000001,0]
[1,null,null,null,null,null,null,null,null,null,{"$f":"SUM(B30:J30)","v":0},"x",2.1,0]
[2.5,null,null,null,null,null,null,null,null,null,{"$f":"SUM(B31:J31)","v":0},"x",4.5999999999999996,0]
[5,null,null,null,null,null,null,null,null,null,{"$f":"SUM(B32:C32)","v":0},"x",9.6,0]
[10,null,null,null,"AANTAL DUIVEN",null,null,null,null,null,{"$f":"SUM(B33)","v":0},"x",19.600000000000001,0]
[25,null,null,null,{"$f":"Home!J15","v":0},null,null,null,null,null,{"$f":"SUM(B34)","v":0},"x",44.6,0]
[null,null,null,null,null,null,null,null,null,"Inleg",null,null,{"$f":"SUM(N27:N34)","v":0}]
[null,null,null,null,null,null,null,null,null,"Port",{"$f":"E34","v":0},"x",{"$f":"VLOOKUP(M2,port,2,FALSE)","v":0},{"$f":"K36*M36","v":0}]
[null,null,null,null,null,null,null,null,null,"Uitslag",null,"x",1,{"$f":"K37*M37","v":0}]
[null,null,null,null,null,null,null,null,null,"Toestel",null,"x",0.5,0]
[null,null,null,null,null,null,null,null,null,"TOTAAL JAARSE:",null,null,{"$f":"SUM(M35,N36,N37,N38)","v":0}]
[]
["Jonge duiven                                                                  "]
[]
[null,"Miezen","Poulen","Special","OAS","AS2","1+2","PVA","POT","Jackpot","Kostprijs",null,null,"Totaal"]
[null,3,6,20,10,15,20,10,"50-30-20",50,"Aantal","x","Kost"]
[0.25,null,null,null,null,null,null,null,null,null,{"$f":"SUM(B45:J45)","v":0},"x",{"$f":"A45","v":0.25},{"$f":"$K45*$M45","v":0}]
[0.35,null,null,null,null,null,null,null,null,null,{"$f":"SUM(B46:J46)","v":0},"x",{"$f":"A46+M45","v":0.6},{"$f":"$K46*$M46","v":0}]
[0.5,null,null,null,null,null,null,null,null,null,{"$f":"SUM(B47:J47)","v":0},"x",1.1000000000000001,0]
[1,null,null,null,null,null,null,null,null,null,{"$f":"SUM(B48:J48)","v":0},"x",2.1,0]
[2.5,null,null,null,null,null,null,null,null,null,{"$f":"SUM(B49:J49)","v":0},"x",4.5999999999999996,0]
[5,null,null,null,null,null,null,null,null,null,{"$f":"SUM(B50:C50)","v":0},"x",9.6,0]
[10,null,null,null,"AANTAL DUIVEN",null,null,null,null,null,{"$f":"SUM(B51)","v":0},"x",19.600000000000001,0]
[25,null,null,null,{"$f":"Home!J16","v":0},null,null,null,null,null,{"$f":"SUM(B52)","v":0},"x",44.6,0]
[null,null,null,null,null,null,null,null,null,"Inleg",null,null,{"$f":"SUM(N45:N52)","v":0}]
[null,null,null,null,null,null,null,null,null,"Port",{"$f":"E52","v":0},"x",{"$f":"VLOOKUP(M2,port,3,FALSE)","v":0},{"$f":"K54*M54","v":0}]
["ALGEMEEN TOTAAL:",null,null,{"$f":"M57+M39+M22","v":0},null,null,null,null,null,"Uitslag",null,"x",1,{"$f":"K55*M55","v":0}]
[null,null,null,null,null,null,null,null,null,"Toestel",null,"x",0.5,0]
[null,null,null,null,null,null,null,null,null,"TOTAAL JONGE:",null,null,{"$f":"SUM(M53,N54,N55,N56)","v":0}]

{"sheet":"6-Verbond","index":3,"n_rows":59,"n_cols":16,"rows_kept":59,"cut":false,"hidden":false,"merged":[[56,0,57,3],[56,4,57,7],[38,0,39,8],[4,0,5,7],[4,10,4,15],[1,0,1,7],[1,10,1,15],[2,0,3,7],[2,10,2,15],[3,10,3,15],[6,10,6,15],[0,9,0,15],[1,8,1,9],[5,10,5,11],[5,13,5,15],[17,8,18,9],[34,5,35,7],[34,8,35,9],[51,5,52,7],[51,8,52,9],[17,5,18,7]]}
["POULEBRIEF - HET 6 VERBOND",null,null,null,null,null,null,null,null,"Lokaal : Verenigde Vrienden Scherpenheuvel"]
["Kies een vlucht:",null,null,null,null,null,null,null,"Naam:",null,{"$f":"Home!C11","v":0}]
["O Snelheid Binnenland",null,null,null,null,null,null,null,"Adres:",null,{"$f":"Home!C12","v":0}]
[null,null,null,null,null,null,null,null,null,null,{"$f":"Home!C13","v":0}]
["O Snelheid Buitenland",null,null,null,null,null,null,null,"Datum:",null,{"$f":"Home!J12","v":0}]
[null,null,null,null,null,null,null,null,"Coord.:",null,{"$f":"Home!J13","v":0},null,"I",{"$f":"Home!L13","v":0}]
[null,null,null,null,null,null,null,null,"Lic.KBDB:",null,{"$f":"Home!C14","v":0}]
[]
[{"$f":"IF(A10=1,0.55,IF(A10=2,0.75,IF(A10=3,0.95,\"\")))","v":0.75},"M","P","SP ","OAS","AS ","RAK.S","JP","AO","AT","SC","POT","aantal ","kost",null,"totaal"]
[2,"3",6,10,10,10,10,10,10,1,"50%+30%+20%",1]
[0.1,null,null,null,null,null,null,null,null,null,null,null,{"$f":"SUM(B11:L11)","v":0},"x 0,10","=",{"$f":"0.1*M11","v":0}]
[0.15,null,null,null,null,null,null,null,null,null,null,null,{"$f":"SUM(B12:L12)","v":0},"x 0,25","=",{"$f":"0.2*M12","v":0}]
[0.25,null,null,null,null,null,null,null,null,null,null,null,0,"x 0,50","=",{"$f":"0.5*M13","v":0}]
[0.5,null,null,null,null,null,null,null,null,null,null,null,0,"x 1,00","=",{"$f":"1*M14","v":0}]
[1,null,null,null,null,null,null,null,null,null,null,null,0,"x 2,00","=",{"$f":"2*M15","v":0}]
[2.5,null,null,null,null,null,null,null,null,null,null,null,0,"x 4,50","=",{"$f":"4.5*M16","v":0}]
[5,null,null,null,null,null,null,null,null,null,null,null,0,"x 9,50","=",{"$f":"9.5*M17","v":0}]
[10,null,null,null,null," Aantal oude:",null,null,{"$f":"Home!J14","v":0},null,null,null,{"$f":"SUM(B18:C18)","v":0},"x 19,50","=",{"$f":"19.5*M18","v":0}]
[15,null,null,null,null,null,null,null,null,null,null,null,0,"x 34,50","=",{"$f":"34.5*M19","v":0}]
[20,null,null,null,null,null,null,null,null,null,null,null,0,"x 54,50","=",{"$f":"54.5*M20","v":0}]
[null,null,null,null,null,null,null,null,null,null,"Totale inleg"]
[null,null,null,null,null,null,null,null,null,null,"Onkosten",null,null,null,"="]
[null,null,null,null,null,null,null,null,null,null,null,null,"Totaal ",null,null,{"$f":"SUM(P11:P22)","v":0}]
[]
[]
[{"$f":"IF(A27=1,0.55,IF(A27=2,0.75,IF(A27=3,0.95,\"\")))","v":0.75},"M","P","SP ","OAS","AS ","RAK.S","JP","AO","AT","SC","POT","aantal ","kost",null,"totaal"]
[2,"3",6,10,10,10,10,10,10,1,"50%+30%+20%",1]
[0.1,null,null,null,null,null,null,null,null,null,null,null,{"$f":"SUM(B28:L28)","v":0},"x 0,10","=",{"$f":"0.1*M28","v":0}]
[0.15,null,null,null,null,null,null,null,null,null,null,null,{"$f":"SUM(B29:L29)","v":0},"x 0,25","=",{"$f":"0.2*M29","v":0}]
[0.25,null,null,null,null,null,null,null,null,null,null,null,0,"x 0,50","=",{"$f":"0.5*M30","v":0}]
[0.5,null,null,null,null,null,null,null,null,null,null,null,0,"x 1,00","=",{"$f":"1*M31","v":0}]
[1,null,null,null,null,null,null,null,null,null,null,null,0,"x 2,00","=",{"$f":"2*M32","v":0}]
[2.5,null,null,null,null,null,null,null,null,null,null,null,0,"x 4,50","=",{"$f":"4.5*M33","v":0}]
[5,null,null,null,null,null,null,null,null,null,null,null,0,"x 9,50","=",{"$f":"9.5*M34","v":0}]
[10,null,null,null,null," Aantal jaarse:",null,null,{"$f":"Home!J15","v":0},null,null,null,{"$f":"SUM(B35:C35)","v":0},"x 19,50","=",{"$f":"19.5*M35","v":0}]
[15,null,null,null,null,null,null,null,null,null,null,null,{"$f":"SUM(B36:C36)","v":0},"x 34,50","=",{"$f":"34.5*M36","v":0}]
[20,null,null,null,null,null,null,null,null,null,null,null,{"$f":"SUM(B37:C37)","v":0},"x 54,50","=",{"$f":"54.5*M37","v":0}]
[null,null,null,null,null,null,null,null,null,null,"Totale inleg"]
["WWW.VERENIGDEVRIENDEN.NET",null,null,null,null,null,null,null,null,null,"Onkosten",null,null,null,"="]
[null,null,null,null,null,null,null,null,null,null,null,null,"Totaal ",null,null,{"$f":"SUM(P28:P39)","v":0}]
[]
[]
[{"$f":"IF(A44=1,0.55,IF(A44=2,0.75,IF(A44=3,0.95,\"\")))","v":0.75},"M","P","SP ","OAS","AS ","RAK.S","JP","AO","AT","SC","POT","aantal ","kost",null,"totaal"]
[2,"3",6,10,10,10,10,10,10,1,"50%+30%+20%",1]
[0.1,null,null,null,null,null,null,null,null,null,null,null,{"$f":"SUM(B45:L45)","v":0},"x 0,10","=",{"$f":"0.1*M45","v":0}]
[0.15,null,null,null,null,null,null,null,null,null,null,null,{"$f":"SUM(B46:L46)","v":0},"x 0,25","=",{"$f":"0.2*M46","v":0}]
[0.25,null,null,null,null,null,null,null,null,null,null,null,0,"x 0,50","=",{"$f":"0.5*M47","v":0}]
[0.5,null,null,null,null,null,null,null,null,null,null,null,0,"x 1,00","=",{"$f":"1*M48","v":0}]
[1,null,null,null,null,null,null,null,null,null,null,null,0,"x 2,00","=",{"$f":"2*M49","v":0}]
[2.5,null,null,null,null,null,null,null,null,null,null,null,0,"x 4,50","=",{"$f":"4.5*M50","v":0}]
[5,null,null,null,null,null,null,null,null,null,null,null,0,"x 9,50","=",{"$f":"9.5*M51","v":0}]
[10,null,null,null,null," Aantal jonge:",null,null,{"$f":"Home!J48","v":0},null,null,null,{"$f":"SUM(B52:C52)","v":0},"x 19,50","=",{"$f":"19.5*M52","v":0}]
[15,null,null,null,null,null,null,null,null,null,null,null,{"$f":"SUM(B53:C53)","v":0},"x 34,50","=",{"$f":"34.5*M53","v":0}]
[20,null,null,null,null,null,null,null,null,null,null,null,0,"x 54,50","=",{"$f":"54.5*M54","v":0}]
[null,null,null,null,null,null,null,null,null,null,"Totale inleg"]
[null,null,null,null,null,null,null,null,null,null,"Onkosten",null,null,null,"="]
["ALGEMEEN TOTAAL:",null,null,null,{"$f":"P59+P58+P57+P40+P23","v":0},null,null,null,null,null,null,null,"Totaal ",null,null,{"$f":"SUM(P45:P56)","v":0}]
[null,null,null,null,null,null,null,null,null,null,"Klok of elektroni.",null,null,"x 0,50","=",{"$f":"0.5*M58","v":0}]
[null,null,null,null,null,null,null,null,null,null,"uitslag/vlucht",null,null,"x 1,50","=",{"$f":"1.5*M59","v":0}]

{"sheet":"NH","index":4,"n_rows":60,"n_cols":15,"rows_kept":60,"cut":false,"hidden":false,"merged":[[57,0,58,2],[57,3,58,5],[0,0,0,14],[1,0,2,1],[1,2,2,6],[1,7,2,7],[1,8,2,10],[1,11,2,12],[1,13,2,14],[23,13,23,14],[3,0,4,1],[3,2,4,7],[3,8,4,8],[3,9,4,10],[3,11,4,11],[3,12,4,14],[15,6,16,7],[17,6,18,7],[19,4,19,5],[20,4,20,5],[21,4,21,5],[22,9,22,10],[59,13,59,14],[33,6,34,7],[35,6,36,7],[41,13,41,14],[51,6,52,7],[53,6,54,7],[57,6,57,7],[40,9,40,10],[58,9,58,10]]}
["SAMENSPEL - HAGELAND"]
["Naam : ",null,{"$f":"Home!C11","v":0},null,null,null,null,"Lidnr:",{"$f":"Home!C14","v":0},null,null,"Datum",null,{"$f":"Home!J12","v":"00:00:00"}]
[]
["Adres:",null,{"$f":"Home!C12","v":0},null,null,null,null,null,"CRD1:",{"$f":"Home!J13","v":0},null,"CRD2:",{"$f":"Home!L13","v":0}]
[]
[]
[null,"M","P","SP","OAS","AS","1+2","jackpot","Ach","ATO","SCH","Aantal",null,"Kost","Totaal"]
[null,3,6,10,10,15,20,"1 Get",10,"1 Ste","50/30/20"]
[0.1,null,null,null,null,null,null,null,null,null,null,{"$f":"SUM(B9:K9)","v":0},"x",{"$f":"A9","v":0.1},{"$f":"L9*N9","v":0}]
[0.15,null,null,null,null,null,null,null,null,null,null,{"$f":"SUM(B10:K10)","v":0},"x",{"$f":"N9+A10","v":0.25},{"$f":"L10*N10","v":0}]
[0.25,null,null,null,null,null,null,null,null,null,null,0,"x",{"$f":"N10+A11","v":0.5},0]
[0.5,null,null,null,null,null,null,null,null,null,null,{"$f":"SUM(B12:H12)","v":0},"x",1,0]
[1,null,null,null,null,null,null,null,null,null,null,{"$f":"SUM(B13:G13)","v":0},"x",2,0]
[2.5,null,null,null,null,null,null,null,null,null,null,{"$f":"SUM(B14:D14)","v":0},"x",4.5,0]
[5,null,null,null,null,null,null,null,null,null,null,{"$f":"SUM(B15:C15)","v":0},"x",9.5,0]
[10,null,null,null,null,null,"Oude duiven",null,null,null,null,{"$f":"SUM(B16:C16)","v":0},"x",19.5,0]
[15,null,null,null,null,null,null,null,null,null,null,0,"x",34.5,0]
[20,null,null,null,null,null,{"$f":"Home!J14","v":0},null,null,null,null,{"$f":"SUM(B18:C18)","v":0},"x",54.5,0]
[null,null,null,null,null,null,null,null,null,null,"Bon",null,"x",null,{"$f":"L19*N19","v":0}]
[null,null,null,null,null,null,null,null,null,null,"Pot LP",null,"x",0.1,{"$f":"L20*N20","v":0}]
[null,null,null,null,null,null,null,null,null,"Totale inleg",null,null,null,null,{"$f":"SUM(O9:O20)","v":0}]
[null,null,null,null,null,null,null,null,null,"Onkosten",null,{"$f":"G18","v":0},"x",0,{"$f":"N22*L22","v":0}]
[null,null,null,null,null,null,null,null,null,"Uitslag",null,null,"x",1,{"$f":"L23*N23","v":0}]
[null,null,null,null,null,null,null,null,null,"Totaal Oude",null,null,null,{"$f":"SUM(O21:O23)","v":0}]
[null,"M","P","SP","OAS","AS","1+2","jackpot","Ach","ATO","SCH","Aantal",null,"Kost","Totaal"]
[null,3,6,10,10,15,20,"1 Get",10,"1 Ste","50/30/20"]
[0.1,null,null,null,null,null,null,null,null,null,null,{"$f":"SUM(B27:K27)","v":0},"x",{"$f":"A27","v":0.1},{"$f":"L27*N27","v":0}]
[0.15,null,null,null,null,null,null,null,null,null,null,{"$f":"SUM(B28:K28)","v":0},"x",{"$f":"N27+A28","v":0.25},{"$f":"L28*N28","v":0}]
[0.25,null,null,null,null,null,null,null,null,null,null,0,"x",{"$f":"N28+A29","v":0.5},0]
[0.5,null,null,null,null,null,null,null,null,null,null,{"$f":"SUM(B30:H30)","v":0},"x",1,0]
[1,null,null,null,null,null,null,null,null,null,null,{"$f":"SUM(B31:G31)","v":0},"x",2,0]
[2.5,null,null,null,null,null,null,null,null,null,null,{"$f":"SUM(B32:D32)","v":0},"x",4.5,0]
[5,null,null,null,null,null,null,null,null,null,null,{"$f":"SUM(B33:C33)","v":0},"x",9.5,0]
[10,null,null,null,null,null,"Jaarduiven",null,null,null,null,{"$f":"SUM(B34:C34)","v":0},"x",19.5,0]
[15,null,null,null,null,null,null,null,null,null,null,0,"x",34.5,0]
[20,null,null,null,null,null,{"$f":"Home!J15","v":0},null,null,null,null,{"$f":"SUM(B36:C36)","v":0},"x",54.5,0]
[null,null,null,null,null,null,null,null,null,null,"Bon",null,"x",null,{"$f":"L37*N37","v":0}]
[null,null,null,null,null,null,null,null,null,null,"Pot LP",null,"x",0.1,{"$f":"L38*N38","v":0}]
[null,"Afgedrukt door tool VV Scherpenheuvel",null,null,null,null,null,null,null,"Totale inleg",null,null,null,null,{"$f":"SUM(O27:O38)","v":0}]
[null,null,null,null,null,null,null,null,null,"Onkosten",null,{"$f":"G36","v":0},"x",0,{"$f":"L40*N40","v":0}]
[null,null,null,null,null,null,null,null,null,"Uitslag",null,null,"x",1,{"$f":"L41*N41","v":0}]
[null,null,null,null,null,null,null,null,null,"Totaal jaar",null,null,null,{"$f":"SUM(O39:O41)","v":0}]
[null,"M","P","SP","OAS","AS","1+2","jackpot","Ach","ATO","SCH","Aantal",null,"Kost","Totaal"]
[null,3,6,10,10,15,20,"1 Get",10,"1 Ste","50/30/20"]
[0.1,null,null,null,null,null,null,null,null,null,null,{"$f":"SUM(B45:K45)","v":0},"x",{"$f":"A45","v":0.1},{"$f":"L45*N45","v":0}]
[0.15,null,null,null,null,null,null,null,null,null,null,{"$f":"SUM(B46:K46)","v":0},"x",{"$f":"N45+A46","v":0.25},{"$f":"L46*N46","v":0}]
[0.25,null,null,null,null,null,null,null,null,null,null,0,"x",{"$f":"N46+A47","v":0.5},0]
[0.5,null,null,null,null,null,null,null,null,null,null,{"$f":"SUM(B48:H48)","v":0},"x",1,0]
[1,null,null,null,null,null,null,null,null,null,null,{"$f":"SUM(B49:G49)","v":0},"x",2,0]
[2.5,null,null,null,null,null,null,null,null,null,null,{"$f":"SUM(B50:D50)","v":0},"x",4.5,0]
[5,null,null,null,null,null,null,null,null,null,null,{"$f":"SUM(B51:C51)","v":0},"x",9.5,0]
[10,null,null,null,null,null,"Jonge duiven",null,null,null,null,{"$f":"SUM(B52:C52)","v":0},"x",19.5,0]
[15,null,null,null,null,null,null,null,null,null,null,0,"x",34.5,0]
[20,null,null,null,null,null,{"$f":"Home!J16","v":0},null,null,null,null,{"$f":"SUM(B54:C54)","v":0},"x",54.5,0]
[null,null,null,null,null,null,null,null,null,null,"Bon",null,"x",null,{"$f":"L55*N55","v":0}]
[null,null,null,null,null,null,null,null,null,null,"Pot LP",null,"x",0.1,{"$f":"L56*N56","v":0}]
[null,null,null,null,null,null,null,null,null,"Totale inleg",null,null,null,null,{"$f":"SUM(O45:O56)","v":0}]
["ALGEMEEN TOTAAL:",null,null,{"$f":"N60+N42+N24","v":0},null,null,null,null,null,"Onkosten",null,{"$f":"G54","v":0},"x",0,{"$f":"N58*L58","v":0}]
[null,null,null,null,null,null,null,null,null,"Uitslag",null,null,"x",1,{"$f":"L59*N59","v":0}]
[null,null,null,null,null,null,null,null,null,"Totaal jonge",null,null,null,{"$f":"SUM(O57:O59)","v":0}]

{"sheet":"Brabantse-Unie","index":5,"n_rows":61,"n_cols":15,"rows_kept":61,"cut":false,"hidden":false,"merged":[[1,2,1,7],[2,2,2,7],[3,2,3,7],[1,10,1,13],[3,11,3,13],[2,10,2,11]]}
["BRABANTSE UNIE - UNION BRABANCONNE  BRABANT CUREGHEM-CENTRE"]
["Naam",null,{"$f":"Home!C11","v":0},null,null,null,null,null,null,"Vlucht",{"$f":"Home!J11","v":0}]
["Adres",null,{"$f":"Home!C12","v":0},null,null,null,null,null,null,"Coord.",{"$f":"Home!J13","v":0},null,"/",{"$f":"Home!L13","v":0}]
["Adresse",null,{"$f":"Home!C13","v":0},null,null,null,null,null,null,"Lic.KBDB",null,{"$f":"Home!C14","v":0}]
[]
[null,null,"M","P","SP ","OS  ND","AS   SD","RS   ST","HO","LIN","SCH","aantal ","kost","totaal"]
[null,null,3,6,10,10,10,10,50,100,"1 pr","nombre","coût","total"]
[0.25,1,null,null,null,null,null,null,null,null,null,{"$f":"SUM(C8:K8)","v":0},"x 0,25",{"$f":"L8*O8","v":0},0.25]
[0.5,2,null,null,null,null,null,null,null,null,null,0,"x 0,75",0,0.75]
[0.75,3,null,null,null,null,null,null,null,null,null,0,"x 1,50",0,1.5]
[1,4,null,null,null,null,null,null,null,null,null,0,"x 2,50",0,2.5]
[1.5,5,null,null,null,null,null,null,null,null,null,0,"x 4,00",0,4]
[3,6,null,null,null,null,null,null,null,null,null,0,"x 7,00",0,7]
[5,7,null,null,null,null,null,null,null,null,null,0,"x 12,00",0,12]
[13,8,null,null,null,null,"OUDE - VIEUX",null,null,null,null,0,"x 25,00",0,25]
[25,9,null,null,null,null,null,null,null,null,null,0,"x 50,00",0,50]
[50,10,null,null,null,null,null,null,null,null,null,0,"x 100,00",0,100]
[null,null,null,null,null,null,null,null,null,null,"BONS",null,"x 5,00",0,5]
[null,null,null,null,null,null,null,null,null,"SERIES",null,null,"x 2,50",0,2.5]
[null,null,null,null,null,null,null,null,"Totale inleg / Total enjeux",null,null,null,null,{"$f":"SUM(N8:N19)","v":0}]
[null,null,null,null,null,null,null,null,"Onkosten / Frais ",null,null,{"$f":"Home!J14","v":0},"x 0,25",{"$f":"L21*O21","v":0},0.25]
[null,null,"Uitslag/Résultat",null,null,"JA","NEEN",null,"Uitslag / Résultat",null,null,null,"x1,00",{"$f":"L22*O22","v":0},1]
[null,null,null,null,null,null,null,null,null,null,null,"Totaal / Total",null,{"$f":"SUM(N20:N22)","v":0}]
[]
[null,null,"M","P","SP ","OS  ND","AS   SD","RS   ST","HO","LIN","SCH","aantal ","kost","totaal"]
[null,null,3,6,10,10,10,10,50,100,"1 pr","nombre","coût","total"]
[0.25,1,null,null,null,null,null,null,null,null,null,{"$f":"SUM(C27:K27)","v":0},"x 0,25",{"$f":"L27*O27","v":0},0.25]
[0.5,2,null,null,null,null,null,null,null,null,null,0,"x 0,75",0,0.75]
[0.75,3,null,null,null,null,null,null,null,null,null,0,"x 1,50",0,1.5]
[1,4,null,null,null,null,null,null,null,null,null,0,"x 2,50",0,2.5]
[1.5,5,null,null,null,null,null,null,null,null,null,0,"x 4,00",0,4]
[3,6,null,null,null,null,null,null,null,null,null,0,"x 7,00",0,7]
[5,7,null,null,null,null,null,null,null,null,null,0,"x 12,00",0,12]
[13,8,null,null,null,null,"JAARSE - YEARL.",null,null,null,null,0,"x 25,00",0,25]
[25,9,null,null,null,null,null,null,null,null,null,0,"x 50,00",0,50]
[50,10,null,null,null,null,null,null,null,null,null,0,"x 100,00",0,100]
[null,null,null,null,null,null,null,null,null,null,"BONS",null,"x 5,00",0,5]
[null,"Afgedrukt door tool VV Scherpenheuvel",null,null,null,null,null,null,null,"SERIES",null,null,"x 2,50",0,2.5]
[null,null,null,null,null,null,null,null,"Totale inleg / Total enjeux",null,null,null,null,{"$f":"SUM(N27:N38)","v":0}]
[null,null,null,null,null,null,null,null,"Onkosten / Frais ",null,null,{"$f":"Home!J15","v":0},"x 0,25",{"$f":"L40*O40","v":0},0.25]
[null,null,"Uitslag/Résultat",null,null,"JA","NEEN",null,"Uitslag / Résultat",null,null,null,"x1,00",{"$f":"L41*O41","v":0},1]
[null,null,null,null,null,null,null,null,null,null,null,"Totaal / Total",null,{"$f":"SUM(N39:N41)","v":0}]
[]
[null,null,"M","P","SP ","OS  ND","AS   SD","RS   ST","HO","LIN","SCH","aantal ","kost","totaal"]
[null,null,null,6,10,10,10,10,50,100,"1 pr","nombre","coût","total"]
[0.25,1,null,null,null,null,null,null,null,null,null,{"$f":"SUM(C46:K46)","v":0},"x 0,25",{"$f":"L46*O46","v":0},0.25]
[0.5,2,null,null,null,null,null,null,null,null,null,0,"x 0,75",0,0.75]
[0.75,3,null,null,null,null,null,null,null,null,null,0,"x 1,50",0,1.5]
[1,4,null,null,null,null,null,null,null,null,null,0,"x 2,50",0,2.5]
[1.5,5,null,null,null,null,null,null,null,null,null,0,"x 4,00",0,4]
[3,6,null,null,null,null,null,null,null,null,null,0,"x 7,00",0,7]
[5,7,null,null,null,null,null,null,null,null,null,0,"x 12,00",0,12]
[13,8,null,null,null,null,"JONGE - PIGEONNEAUX",null,null,null,null,0,"x 25,00",0,25]
[25,9,null,null,null,null,null,null,null,null,null,0,"x 50,00",0,50]
[50,10,null,null,null,null,null,null,null,null,null,0,"x 100,00",0,100]
[null,null,null,null,null,null,null,null,null,null,"BONS",null,"x 5,00",0,5]
[null,null,null,null,null,null,null,null,null,"SERIES",null,null,"x 2,50",0,2.5]
[null,null,null,null,null,null,null,null,"Totale inleg / Total enjeux",null,null,null,null,{"$f":"SUM(N46:N57)","v":0},1.75]
[null,null,null,null,null,null,null,null,"Onkosten / Frais ",null,null,{"$f":"Home!J16","v":0},"x 0,25",{"$f":"L59*O59","v":0},0.25]
[null,null,"Uitslag/Résultat",null,null,"JA","NEEN",null,"Uitslag / Résultat",null,null,null,"x1,00",{"$f":"L60*O60","v":0},1]
[null,null,"Uitslag via web applicatie",null,null,null,null,null,null,null,null,"Totaal / Total",null,{"$f":"SUM(N58:N60)","v":0}]

{"sheet":"Nationaal","index":6,"n_rows":59,"n_cols":18,"rows_kept":59,"cut":false,"hidden":false,"merged":[[38,0,40,6],[32,4,36,10],[41,5,41,6],[0,0,0,17],[1,0,2,2],[1,3,2,9],[1,10,2,10],[1,11,2,13],[1,14,2,15],[1,16,2,17],[3,0,4,2],[3,3,4,9],[3,10,4,10],[3,11,4,13],[3,14,3,16],[4,14,4,16],[5,0,6,2],[22,12,22,13],[23,12,23,13],[24,5,24,6],[24,12,24,13],[24,14,24,17],[5,3,6,7],[5,14,5,16],[15,4,19,10],[20,12,20,13],[21,12,21,13],[41,14,41,17],[49,4,53,10],[54,0,54,4],[54,5,54,7],[54,12,54,13],[37,12,37,13],[38,12,38,13],[39,12,39,13],[40,12,40,13],[41,12,41,13],[58,14,58,17],[55,0,55,4],[55,5,55,7],[55,12,55,13],[56,0,56,4],[56,5,56,7],[56,12,56,13],[57,0,58,4],[57,5,58,7],[57,12,57,13],[58,12,58,13]]}
["NATIONAAL - ZONAAL - PROVINCIAAL"]
["Naam : ",null,null,{"$f":"Home!C11","v":0},null,null,null,null,null,null,"CRD1:",{"$f":"Home!J13","v":0},null,null,"Datum:",null,{"$f":"Home!J12","v":"00:00:00"}]
[]
["Adres:",null,null,{"$f":"Home!C12","v":0},null,null,null,null,null,null,"CRD2:",{"$f":"Home!L13","v":0},null,null,"OUDE DUIVEN"]
[null,null,null,null,null,null,null,null,null,null,null,null,null,null,"JAARDUIVEN"]
["LID NR:",null,null,"208904-63",null,null,null,null,null,null,null,null,null,null,"JONGE DUIVEN"]
[]
[]
[null,null,"M","P","EP","AS2","AS3","SP3","RAS","OA2","OA3","KRA","HEE","SPR","AANT",null,"Kost","Totaal"]
[null,null,4,6,10,10,15,15,15,10,15,10,15,"4ST"]
[1,0.25,null,null,null,null,null,null,null,null,null,null,null,null,{"$f":"SUM(C11:N11)","v":0},"x",{"$f":"B11","v":0.25},{"$f":"O11*Q11","v":0}]
[2,0.75,null,null,null,null,null,null,null,null,null,null,null,null,{"$f":"SUM(C12:N12)","v":0},"x",{"$f":"Q11+B12","v":1},{"$f":"O12*Q12","v":0}]
[3,1,null,null,null,null,null,null,null,null,null,null,null,null,0,"x",{"$f":"Q12+B13","v":2},0]
[4,2,null,null,null,null,null,null,null,null,null,null,null,null,0,"x",4,0]
[5,5,null,null,null,null,null,null,null,null,null,null,null,null,0,"x",9,0]
[6,10,null,null,"NATIONAAL",null,null,null,null,null,null,null,null,null,0,"x",19,0]
[7,20,null,null,null,null,null,null,null,null,null,null,null,null,0,"x",39,0]
[8,50,null,null,null,null,null,null,null,null,null,null,null,null,0,"x",89,0]
[9,150,null,null,null,null,null,null,null,null,null,null,null,null,0,"x",239,0]
[10,250,null,null,null,null,null,null,null,null,null,null,null,null,0,"x",489,0]
[null,null,null,null,null,null,null,null,null,null,null,null,"BOM",null,null,"x",0.5,{"$f":"O21*Q21","v":0}]
[null,null,null,null,null,null,null,null,null,null,null,null,"GET",null,null,"x",0.5,{"$f":"O22*Q22","v":0}]
[null,null,null,null,null,null,null,null,null,null,null,null,"HWG",null,null,"x",0.5,0]
[null,null,null,null,null,null,null,null,null,null,null,null,"ONKOSTEN",null,{"$f":"Home!J14","v":0},"x",1.9,0]
[null,null,null,null,null,null,null,null,null,null,null,null,"TOTAAL",null,{"$f":"SUM(R11:R24)","v":0}]
[null,null,"M","P","EP","AS2","AS3","SP3","RAS","OA2","OA3","KRA","HEE","SPR","AANT",null,"Kost","Totaal"]
[null,null,4,6,10,10,15,15,15,10,15,10,15,"4ST"]
[1,0.25,null,null,null,null,null,null,null,null,null,null,null,null,{"$f":"SUM(C28:N28)","v":0},"x",{"$f":"B28","v":0.25},{"$f":"O28*Q28","v":0}]
[2,0.75,null,null,null,null,null,null,null,null,null,null,null,null,{"$f":"SUM(C29:N29)","v":0},"x",{"$f":"Q28+B29","v":1},{"$f":"O29*Q29","v":0}]
[3,1,null,null,null,null,null,null,null,null,null,null,null,null,0,"x",{"$f":"Q29+B30","v":2},0]
[4,2,null,null,null,null,null,null,null,null,null,null,null,null,0,"x",4,0]
[5,5,null,null,null,null,null,null,null,null,null,null,null,null,0,"x",9,0]
[6,10,null,null,"ZONAAL",null,null,null,null,null,null,null,null,null,0,"x",19,0]
[7,20,null,null,null,null,null,null,null,null,null,null,null,null,0,"x",39,0]
[8,50,null,null,null,null,null,null,null,null,null,null,null,null,0,"x",89,0]
[9,150,null,null,null,null,null,null,null,null,null,null,null,null,0,"x",239,0]
[10,250,null,null,null,null,null,null,null,null,null,null,null,null,0,"x",489,0]
[null,null,null,null,null,null,null,null,null,null,null,null,"BOM",null,null,"x",0.5,{"$f":"O38*Q38","v":0}]
["WWW.VERENIGDEVRIENDEN.NET",null,null,null,null,null,null,null,null,null,null,null,"GET",null,null,"x",0.5,{"$f":"O39*Q39","v":0}]
[null,null,null,null,null,null,null,null,null,null,null,null,"HWG",null,null,"x",0.5,0]
[null,null,null,null,null,null,null,null,null,null,null,null,"ONKOSTEN",null,{"$f":"O24","v":0},"x",null,0]
[null,null,null,null,null,null,null,null,null,null,null,null,"TOTAAL",null,{"$f":"SUM(R28:R41)","v":0}]
[null,null,"M","P","EP","AS2","AS3","SP3","RAS","OA2","OA3","KRA","HEE","SPR","AANT",null,"Kost","Totaal"]
[null,null,4,6,10,10,15,15,15,10,15,10,15,"4ST"]
[1,0.25,null,null,null,null,null,null,null,null,null,null,null,null,{"$f":"SUM(C45:N45)","v":0},"x",{"$f":"B45","v":0.25},{"$f":"O45*Q45","v":0}]
[2,0.75,null,null,null,null,null,null,null,null,null,null,null,null,{"$f":"SUM(C46:N46)","v":0},"x",{"$f":"Q45+B46","v":1},{"$f":"O46*Q46","v":0}]
[3,1,null,null,null,null,null,null,null,null,null,null,null,null,0,"x",{"$f":"Q46+B47","v":2},0]
[4,2,null,null,null,null,null,null,null,null,null,null,null,null,0,"x",4,0]
[5,5,null,null,null,null,null,null,null,null,null,null,null,null,0,"x",9,0]
[6,10,null,null,"PROVINCIAAL",null,null,null,null,null,null,null,null,null,0,"x",19,0]
[7,20,null,null,null,null,null,null,null,null,null,null,null,null,0,"x",39,0]
[8,50,null,null,null,null,null,null,null,null,null,null,null,null,0,"x",89,0]
[9,150,null,null,null,null,null,null,null,null,null,null,null,null,0,"x",239,0]
[10,250,null,null,null,null,null,null,null,null,null,null,null,null,0,"x",489,0]
["     TOTAAL NATIONAAL",null,null,null,null,{"$f":"O25","v":0},null,null,null,null,null,null,"BOM",null,null,"x",0.5,{"$f":"O55*Q55","v":0}]
["     TOTAAL ZONAAL",null,null,null,null,{"$f":"O42","v":0},null,null,null,null,null,null,"GET",null,null,"x",0.5,{"$f":"O56*Q56","v":0}]
["     TOTAAL PROVINCIAAL",null,null,null,null,{"$f":"O59","v":0},null,null,null,null,null,null,"HWG",null,null,"x",0.5,0]
["ALG TOTAAL",null,null,null,null,{"$f":"SUM(F55:H57)","v":0},null,null,null,null,null,null,"ONKOSTEN",null,{"$f":"O41","v":0},"x",0.25,0]
[null,null,null,null,null,null,null,null,null,null,null,null,"TOTAAL",null,{"$f":"SUM(R45:R58)","v":0}]

{"sheet":"Nationaal2","index":7,"n_rows":59,"n_cols":18,"rows_kept":59,"cut":false,"hidden":false,"merged":[[5,0,6,2],[3,14,3,16],[4,14,4,16],[0,0,0,17],[1,0,2,2],[1,3,2,9],[1,10,2,10],[1,11,2,13],[1,14,2,15],[1,16,2,17],[5,3,6,7],[3,0,4,2],[3,3,4,9],[3,10,4,10],[3,11,4,13],[23,12,23,13],[24,5,24,6],[24,12,24,13],[24,14,24,17],[41,5,41,6],[32,4,36,10],[38,0,40,6],[5,14,5,16],[15,4,19,10],[20,12,20,13],[21,12,21,13],[22,12,22,13],[41,14,41,17],[55,12,55,13],[49,4,53,10],[54,0,54,4],[54,5,54,7],[54,12,54,13],[37,12,37,13],[38,12,38,13],[39,12,39,13],[40,12,40,13],[41,12,41,13],[57,0,58,4],[57,5,58,7],[57,12,57,13],[58,12,58,13],[58,14,58,17],[55,0,55,4],[55,5,55,7],[56,0,56,4],[56,5,56,7],[56,12,56,13]]}
["NATIONAAL - ZONAAL - PROVINCIAAL"]
["Naam : ",null,null,{"$f":"Home!C11","v":0},null,null,null,null,null,null,"CRD1:",{"$f":"Home!J13","v":0},null,null,"Datum:",null,{"$f":"Home!J12","v":"00:00:00"}]
[]
["Adres:",null,null,{"$f":"Home!C12","v":0},null,null,null,null,null,null,"CRD2:",{"$f":"Home!L13","v":0},null,null,"OUDE DUIVEN"]
[null,null,null,null,null,null,null,null,null,null,null,null,null,null,"JAARDUIVEN"]
["LID NR:",null,null,"208904-63",null,null,null,null,null,null,null,null,null,null,"JONGE DUIVEN"]
[]
[]
[null,null,"M","P","EP","AS2","AS3","SP3","RAS","OA2","OA3","KRA","HEE","SPR","AANT",null,"Kost","Totaal"]
[null,null,4,6,10,10,15,15,15,10,15,10,15,"4ST"]
[1,0.25,null,null,null,null,null,null,null,null,null,null,null,null,{"$f":"SUM(C11:N11)","v":0},"x",{"$f":"B11","v":0.25},{"$f":"O11*Q11","v":0}]
[2,0.75,null,null,null,null,null,null,null,null,null,null,null,null,{"$f":"SUM(C12:N12)","v":0},"x",{"$f":"Q11+B12","v":1},{"$f":"O12*Q12","v":0}]
[3,1,null,null,null,null,null,null,null,null,null,null,null,null,0,"x",{"$f":"Q12+B13","v":2},0]
[4,2,null,null,null,null,null,null,null,null,null,null,null,null,0,"x",4,0]
[5,5,null,null,null,null,null,null,null,null,null,null,null,null,0,"x",9,0]
[6,10,null,null,"NATIONAAL",null,null,null,null,null,null,null,null,null,0,"x",19,0]
[7,20,null,null,null,null,null,null,null,null,null,null,null,null,0,"x",39,0]
[8,50,null,null,null,null,null,null,null,null,null,null,null,null,0,"x",89,0]
[9,150,null,null,null,null,null,null,null,null,null,null,null,null,0,"x",239,0]
[10,250,null,null,null,null,null,null,null,null,null,null,null,null,0,"x",489,0]
[null,null,null,null,null,null,null,null,null,null,null,null,"BOM",null,null,"x",0.5,{"$f":"O21*Q21","v":0}]
[null,null,null,null,null,null,null,null,null,null,null,null,"GET",null,null,"x",0.5,{"$f":"O22*Q22","v":0}]
[null,null,null,null,null,null,null,null,null,null,null,null,"HWG",null,null,"x",0.5,0]
[null,null,null,null,null,null,null,null,null,null,null,null,"ONKOSTEN",null,{"$f":"Home!J14","v":0},"x",1.9,0]
[null,null,null,null,null,null,null,null,null,null,null,null,"TOTAAL",null,{"$f":"SUM(R11:R24)","v":0}]
[null,null,"M","P","EP","AS2","AS3","SP3","RAS","OA2","OA3","KRA","HEE","SPR","AANT",null,"Kost","Totaal"]
[null,null,4,6,10,10,15,15,15,10,15,10,15,"4ST"]
[1,0.25,null,null,null,null,null,null,null,null,null,null,null,null,{"$f":"SUM(C28:N28)","v":0},"x",{"$f":"B28","v":0.25},{"$f":"O28*Q28","v":0}]
[2,0.75,null,null,null,null,null,null,null,null,null,null,null,null,{"$f":"SUM(C29:N29)","v":0},"x",{"$f":"Q28+B29","v":1},{"$f":"O29*Q29","v":0}]
[3,1,null,null,null,null,null,null,null,null,null,null,null,null,0,"x",{"$f":"Q29+B30","v":2},0]
[4,2,null,null,null,null,null,null,null,null,null,null,null,null,0,"x",4,0]
[5,5,null,null,null,null,null,null,null,null,null,null,null,null,0,"x",9,0]
[6,10,null,null,"ZONAAL",null,null,null,null,null,null,null,null,null,0,"x",19,0]
[7,20,null,null,null,null,null,null,null,null,null,null,null,null,0,"x",39,0]
[8,50,null,null,null,null,null,null,null,null,null,null,null,null,0,"x",89,0]
[9,150,null,null,null,null,null,null,null,null,null,null,null,null,0,"x",239,0]
[10,250,null,null,null,null,null,null,null,null,null,null,null,null,0,"x",489,0]
[null,null,null,null,null,null,null,null,null,null,null,null,"BOM",null,null,"x",0.5,{"$f":"O38*Q38","v":0}]
["WWW.VERENIGDEVRIENDEN.NET",null,null,null,null,null,null,null,null,null,null,null,"GET",null,null,"x",0.5,{"$f":"O39*Q39","v":0}]
[null,null,null,null,null,null,null,null,null,null,null,null,"HWG",null,null,"x",0.5,0]
[null,null,null,null,null,null,null,null,null,null,null,null,"ONKOSTEN",null,{"$f":"O24","v":0},"x",null,0]
[null,null,null,null,null,null,null,null,null,null,null,null,"TOTAAL",null,{"$f":"SUM(R28:R41)","v":0}]
[null,null,"M","P","EP","AS2","AS3","SP3","RAS","OA2","OA3","KRA","HEE","SPR","AANT",null,"Kost","Totaal"]
[null,null,4,6,10,10,15,15,15,10,15,10,15,"4ST"]
[1,0.25,null,null,null,null,null,null,null,null,null,null,null,null,{"$f":"SUM(C45:N45)","v":0},"x",{"$f":"B45","v":0.25},{"$f":"O45*Q45","v":0}]
[2,0.75,null,null,null,null,null,null,null,null,null,null,null,null,{"$f":"SUM(C46:N46)","v":0},"x",{"$f":"Q45+B46","v":1},{"$f":"O46*Q46","v":0}]
[3,1,null,null,null,null,null,null,null,null,null,null,null,null,0,"x",{"$f":"Q46+B47","v":2},0]
[4,2,null,null,null,null,null,null,null,null,null,null,null,null,0,"x",4,0]
[5,5,null,null,null,null,null,null,null,null,null,null,null,null,0,"x",9,0]
[6,10,null,null,"PROVINCIAAL",null,null,null,null,null,null,null,null,null,0,"x",19,0]
[7,20,null,null,null,null,null,null,null,null,null,null,null,null,0,"x",39,0]
[8,50,null,null,null,null,null,null,null,null,null,null,null,null,0,"x",89,0]
[9,150,null,null,null,null,null,null,null,null,null,null,null,null,0,"x",239,0]
[10,250,null,null,null,null,null,null,null,null,null,null,null,null,0,"x",489,0]
["     TOTAAL NATIONAAL",null,null,null,null,{"$f":"O25","v":0},null,null,null,null,null,null,"BOM",null,null,"x",0.5,{"$f":"O55*Q55","v":0}]
["     TOTAAL ZONAAL",null,null,null,null,{"$f":"O42","v":0},null,null,null,null,null,null,"GET",null,null,"x",0.5,{"$f":"O56*Q56","v":0}]
["     TOTAAL PROVINCIAAL",null,null,null,null,{"$f":"O59","v":0},null,null,null,null,null,null,"HWG",null,null,"x",0.5,0]
["ALG TOTAAL",null,null,null,null,{"$f":"SUM(F55:H57)","v":0},null,null,null,null,null,null,"ONKOSTEN",null,{"$f":"O41","v":0},"x",0.25,0]
[null,null,null,null,null,null,null,null,null,null,null,null,"TOTAAL",null,{"$f":"SUM(R45:R58)","v":0}]

{"sheet":"Nationaal3","index":8,"n_rows":59,"n_cols":18,"rows_kept":59,"cut":false,"hidden":false,"merged":[[5,0,6,2],[3,14,3,16],[4,14,4,16],[0,0,0,17],[1,0,2,2],[1,3,2,9],[1,10,2,10],[1,11,2,13],[1,14,2,15],[1,16,2,17],[5,3,6,7],[3,0,4,2],[3,3,4,9],[3,10,4,10],[3,11,4,13],[23,12,23,13],[24,5,24,6],[24,12,24,13],[24,14,24,17],[41,5,41,6],[32,4,36,10],[38,0,40,6],[5,14,5,16],[15,4,19,10],[20,12,20,13],[21,12,21,13],[22,12,22,13],[41,14,41,17],[55,12,55,13],[49,4,53,10],[54,0,54,4],[54,5,54,7],[54,12,54,13],[37,12,37,13],[38,12,38,13],[39,12,39,13],[40,12,40,13],[41,12,41,13],[57,0,58,4],[57,5,58,7],[57,12,57,13],[58,12,58,13],[58,14,58,17],[55,0,55,4],[55,5,55,7],[56,0,56,4],[56,5,56,7],[56,12,56,13]]}
["NATIONAAL - ZONAAL - PROVINCIAAL"]
["Naam : ",null,null,{"$f":"Home!C11","v":0},null,null,null,null,null,null,"CRD1:",{"$f":"Home!J13","v":0},null,null,"Datum:",null,{"$f":"Home!J12","v":"00:00:00"}]
[]
["Adres:",null,null,{"$f":"Home!C12","v":0},null,null,null,null,null,null,"CRD2:",{"$f":"Home!L13","v":0},null,null,"OUDE DUIVEN"]
[null,null,null,null,null,null,null,null,null,null,null,null,null,null,"JAARDUIVEN"]
["LID NR:",null,null,"208904-63",null,null,null,null,null,null,null,null,null,null,"JONGE DUIVEN"]
[]
[]
[null,null,"M","P","EP","AS2","AS3","SP3","RAS","OA2","OA3","KRA","HEE","SPR","AANT",null,"Kost","Totaal"]
[null,null,4,6,10,10,15,15,15,10,15,10,15,"4ST"]
[1,0.25,null,null,null,null,null,null,null,null,null,null,null,null,{"$f":"SUM(C11:N11)","v":0},"x",{"$f":"B11","v":0.25},{"$f":"O11*Q11","v":0}]
[2,0.75,null,null,null,null,null,null,null,null,null,null,null,null,{"$f":"SUM(C12:N12)","v":0},"x",{"$f":"Q11+B12","v":1},{"$f":"O12*Q12","v":0}]
[3,1,null,null,null,null,null,null,null,null,null,null,null,null,0,"x",{"$f":"Q12+B13","v":2},0]
[4,2,null,null,null,null,null,null,null,null,null,null,null,null,0,"x",4,0]
[5,5,null,null,null,null,null,null,null,null,null,null,null,null,0,"x",9,0]
[6,10,null,null,"NATIONAAL",null,null,null,null,null,null,null,null,null,0,"x",19,0]
[7,20,null,null,null,null,null,null,null,null,null,null,null,null,0,"x",39,0]
[8,50,null,null,null,null,null,null,null,null,null,null,null,null,0,"x",89,0]
[9,150,null,null,null,null,null,null,null,null,null,null,null,null,0,"x",239,0]
[10,250,null,null,null,null,null,null,null,null,null,null,null,null,0,"x",489,0]
[null,null,null,null,null,null,null,null,null,null,null,null,"BOM",null,null,"x",0.5,{"$f":"O21*Q21","v":0}]
[null,null,null,null,null,null,null,null,null,null,null,null,"GET",null,null,"x",0.5,{"$f":"O22*Q22","v":0}]
[null,null,null,null,null,null,null,null,null,null,null,null,"HWG",null,null,"x",0.5,0]
[null,null,null,null,null,null,null,null,null,null,null,null,"ONKOSTEN",null,{"$f":"Home!J14","v":0},"x",1.9,0]
[null,null,null,null,null,null,null,null,null,null,null,null,"TOTAAL",null,{"$f":"SUM(R11:R24)","v":0}]
[null,null,"M","P","EP","AS2","AS3","SP3","RAS","OA2","OA3","KRA","HEE","SPR","AANT",null,"Kost","Totaal"]
[null,null,4,6,10,10,15,15,15,10,15,10,15,"4ST"]
[1,0.25,null,null,null,null,null,null,null,null,null,null,null,null,{"$f":"SUM(C28:N28)","v":0},"x",{"$f":"B28","v":0.25},{"$f":"O28*Q28","v":0}]
[2,0.75,null,null,null,null,null,null,null,null,null,null,null,null,{"$f":"SUM(C29:N29)","v":0},"x",{"$f":"Q28+B29","v":1},{"$f":"O29*Q29","v":0}]
[3,1,null,null,null,null,null,null,null,null,null,null,null,null,0,"x",{"$f":"Q29+B30","v":2},0]
[4,2,null,null,null,null,null,null,null,null,null,null,null,null,0,"x",4,0]
[5,5,null,null,null,null,null,null,null,null,null,null,null,null,0,"x",9,0]
[6,10,null,null,"ZONAAL",null,null,null,null,null,null,null,null,null,0,"x",19,0]
[7,20,null,null,null,null,null,null,null,null,null,null,null,null,0,"x",39,0]
[8,50,null,null,null,null,null,null,null,null,null,null,null,null,0,"x",89,0]
[9,150,null,null,null,null,null,null,null,null,null,null,null,null,0,"x",239,0]
[10,250,null,null,null,null,null,null,null,null,null,null,null,null,0,"x",489,0]
[null,null,null,null,null,null,null,null,null,null,null,null,"BOM",null,null,"x",0.5,{"$f":"O38*Q38","v":0}]
["WWW.VERENIGDEVRIENDEN.NET",null,null,null,null,null,null,null,null,null,null,null,"GET",null,null,"x",0.5,{"$f":"O39*Q39","v":0}]
[null,null,null,null,null,null,null,null,null,null,null,null,"HWG",null,null,"x",0.5,0]
[null,null,null,null,null,null,null,null,null,null,null,null,"ONKOSTEN",null,{"$f":"O24","v":0},"x",null,0]
[null,null,null,null,null,null,null,null,null,null,null,null,"TOTAAL",null,{"$f":"SUM(R28:R41)","v":0}]
[null,null,"M","P","EP","AS2","AS3","SP3","RAS","OA2","OA3","KRA","HEE","SPR","AANT",null,"Kost","Totaal"]
[null,null,4,6,10,10,15,15,15,10,15,10,15,"4ST"]
[1,0.25,null,null,null,null,null,null,null,null,null,null,null,null,{"$f":"SUM(C45:N45)","v":0},"x",{"$f":"B45","v":0.25},{"$f":"O45*Q45","v":0}]
[2,0.75,null,null,null,null,null,null,null,null,null,null,null,null,{"$f":"SUM(C46:N46)","v":0},"x",{"$f":"Q45+B46","v":1},{"$f":"O46*Q46","v":0}]
[3,1,null,null,null,null,null,null,null,null,null,null,null,null,0,"x",{"$f":"Q46+B47","v":2},0]
[4,2,null,null,null,null,null,null,null,null,null,null,null,null,0,"x",4,0]
[5,5,null,null,null,null,null,null,null,null,null,null,null,null,0,"x",9,0]
[6,10,null,null,"PROVINCIAAL",null,null,null,null,null,null,null,null,null,0,"x",19,0]
[7,20,null,null,null,null,null,null,null,null,null,null,null,null,0,"x",39,0]
[8,50,null,null,null,null,null,null,null,null,null,null,null,null,0,"x",89,0]
[9,150,null,null,null,null,null,null,null,null,null,null,null,null,0,"x",239,0]
[10,250,null,null,null,null,null,null,null,null,null,null,null,null,0,"x",489,0]
["     TOTAAL NATIONAAL",null,null,null,null,{"$f":"O25","v":0},null,null,null,null,null,null,"BOM",null,null,"x",0.5,{"$f":"O55*Q55","v":0}]
["     TOTAAL ZONAAL",null,null,null,null,{"$f":"O42","v":0},null,null,null,null,null,null,"GET",null,null,"x",0.5,{"$f":"O56*Q56","v":0}]
["     TOTAAL PROVINCIAAL",null,null,null,null,{"$f":"O59","v":0},null,null,null,null,null,null,"HWG",null,null,"x",0.5,0]
["ALG TOTAAL",null,null,null,null,{"$f":"SUM(F55:H57)","v":0},null,null,null,null,null,null,"ONKOSTEN",null,{"$f":"O41","v":0},"x",0.25,0]
[null,null,null,null,null,null,null,null,null,null,null,null,"TOTAAL",null,{"$f":"SUM(R45:R58)","v":0}]

{"sheet":"Afrekening","index":9,"n_rows":22,"n_cols":4,"rows_kept":22,"cut":false,"hidden":false,"merged":[]}
[]
[]
[]
[null,"POELBRIEF","CATEGORIE","TOTALE KOST"]
[null,"LOKAAL","OUDE",{"$f":"Lokaal!M22","v":0}]
[null,"LOKAAL","JAARSE",{"$f":"Lokaal!M39","v":0}]
[null,"LOKAAL","JONGE",{"$f":"Lokaal!M57","v":0}]
[null,"SAMENSPEL HAGELAND","OUDE",{"$f":"NH!N24","v":0}]
[null,"SAMENSPEL HAGELAND","JAARSE",{"$f":"NH!N42","v":0}]
[null,"SAMENSPEL HAGELAND","JONGE",{"$f":"NH!N60","v":0}]
[null,"6-VERBOND","OUDE",{"$f":"'6-Verbond'!P23","v":0}]
[null,"6-VERBOND","JAARSE",{"$f":"'6-Verbond'!P40","v":0}]
[null,"6-VERBOND","JONGE",{"$f":"'6-Verbond'!P57","v":0}]
[null,"PROVINCIAAL","OUDE",{"$f":"Nationaal!O59","v":0}]
[null,"PROVINCIAAL","JAARSE",{"$f":"Nationaal2!O59","v":0}]
[null,"PROVINCIAAL","JONGE",{"$f":"Nationaal3!O59","v":0}]
[null,"ZONAAL","OUDE",{"$f":"Nationaal!O42","v":0}]
[null,"ZONAAL","JAARSE",{"$f":"Nationaal2!O42","v":0}]
[null,"ZONAAL","JONGE",{"$f":"Nationaal3!O42","v":0}]
[null,"NATIONAAL","OUDE",{"$f":"Nationaal!O25","v":0}]
[null,"NATIONAAL","JAARSE",{"$f":"Nationaal2!O25","v":0}]
[null,"NATIONAAL","JONGE",{"$f":"Nationaal3!O25","v":0}]